bitfinex-derivatives/quotes_BNBF0:USTF0_20250331
["timestamp","ask_amount","ask_price","bid_price","bid_amount"]
[1743414807682,2.36180649,587.66,586.61,0.27694113]
[1743414807887,2.36180649,587.65,586.61,0.27694113]
[1743414808086,2.36180649,587.64,586.61,0.27694113]
[1743414808286,2.35801922,587.63,586.6,0.34094783]
[1743414808486,2.35801922,587.62,586.61,0.27688968]
[1743414808685,3.18347263,587.66,586.61,0.27688968]
[1743414808686,5.54149185,587.61,586.61,0.27688968]
[1743414808992,2.35801922,587.6,586.61,0.27688968]
[1743414809186,2.35801922,587.59,586.62,0.27690979]
[1743414809391,2.35801922,587.58,586.61,0.27690979]
[1743414809587,2.35801922,587.57,586.62,0.27690979]
[1743414809796,2.35801922,587.56,586.61,0.27690979]
[1743414810094,3.47986735,587.58,586.6,0.34094783]
[1743414810095,2.34991021,587.55,586.62,0.27690979]
[1743414810294,2.34991021,587.54,586.63,0.27691178]
[1743414810588,1.45183138,587.53,586.64,0.27691178]
[1743414810793,1.45183138,587.53,586.6,0.34094783]
[1743414810794,1.45183138,587.52,586.61,0.27691178]
[1743414810985,1.45183138,587.51,586.62,0.27691178]
[1743414811186,3.18347263,587.52,586.61,0.27691178]
[1743414811391,3.18347263,587.52,586.62,0.27691178]
[1743414811591,3.18347263,587.51,586.63,0.27691178]
[1743414811789,3.18347263,587.51,586.64,0.61783636]
[1743414811992,3.18347263,587.51,586.65,0.61783055]
[1743414812189,3.18347263,587.51,586.66,0.61782474]
[1743414812388,1.22441255,587.5,586.67,0.27691178]
[1743414812588,1.22441255,587.5,586.66,0.34091296]
[1743414812589,1.22441255,587.5,586.68,0.27691178]
[1743414812792,1.22441255,587.49,586.69,0.27691178]
[1743414812994,1.22441255,587.49,586.7,0.27691178]
[1743414813190,1.22441255,587.49,586.67,0.27691178]
[1743414813494,1.22441255,587.48,586.68,0.27691178]
[1743414813692,1.22441255,587.48,586.67,0.27691178]
[1743414813888,1.22441255,587.48,586.68,0.27691178]
[1743414814093,1.22441255,587.47,586.69,0.27691178]
[1743414814289,1.22441255,587.47,586.7,0.27691178]
[1743414814493,1.22441255,587.47,586.71,0.27691178]
[1743414814694,1.22441255,587.46,586.72,0.27691178]
[1743414814891,1.22441255,587.46,586.73,0.27691178]
[1743414815091,1.22441255,587.46,586.74,0.27691178]
[1743414815295,1.4496476,587.45,586.74,0.27691178]
[1743414815494,2.34617395,587.44,586.75,0.27691178]
[1743414815691,1.4496824,587.43,586.76,0.27691178]
[1743414815897,1.4496824,587.42,586.77,0.27691178]
[1743414816094,1.4496824,587.41,586.78,0.27691178]
[1743414816297,2.34656904,587.4,586.67,0.27691178]
[1743414816597,2.34656904,587.4,586.66,0.34091296]
[1743414816598,8.51654127,587.39,586.68,0.27691178]
[1743414816798,4.66463135,587.38,586.67,0.27691178]
[1743414817000,6.09889576,587.37,585.75,2.5552563]
[1743414817199,4.66463135,587.36,586.68,0.27703209]
[1743414817400,6.09761019,587.35,586.69,0.27703209]
[1743414817599,6.09761019,587.34,585.78,0.27703209]
[1743414817897,6.09761019,587.33,585.79,0.27703209]
[1743414818100,6.09761019,587.32,585.8,0.27703209]
[1743414818301,6.6084885,587.31,585.81,0.27703209]
[1743414818503,6.6084885,587.3,585.82,0.27703209]
[1743414818698,8.26820237,587.29,585.81,0.29663979]
[1743414818898,6.60853838,587.28,585.81,0.29663979]
[1743414819205,6.60854694,587.27,585.83,0.34139596]
[1743414819503,6.09761019,587.26,585.83,0.34139596]
[1743414819699,4.66463135,587.25,585.84,0.27713593]
[1743414819906,2.34620117,587.24,585.84,0.27713593]
[1743414820101,2.34620117,587.23,585.84,0.27713593]
[1743414820304,2.34620117,587.22,585.84,0.27713593]
[1743414820506,2.34620117,587.21,585.84,0.27713593]
[1743414820801,9.25548057,587.2,585.86,0.34137848]
[1743414821001,4.65491295,587.19,585.87,0.27713593]
[1743414821203,4.65491295,587.18,585.87,0.27713593]
[1743414821503,4.65491295,587.17,585.89,0.341361]
[1743414821699,2.3434035,587.16,585.9,0.27713593]
[1743414822006,6.19524178,587.15,585.92,0.34134352]
[1743414822205,2.3434035,587.14,585.93,0.27713593]
[1743414822506,2.34241137,587.13,585.95,0.34132605]
[1743414822704,2.34241137,587.12,585.96,0.27713593]
[1743414822906,1.4496824,587.11,585.98,0.34130857]
[1743414823104,1.4496824,587.1,585.99,0.27713593]
[1743414823301,1.4496824,587.09,586.01,0.3412911]
[1743414823505,1.44246263,587.08,586.02,0.27713593]
[1743414823706,1.44246263,587.07,586.02,0.27713593]
[1743414823901,1.44246263,587.06,586.02,0.27713593]
[1743414824101,3.17065985,587.08,586.02,0.27713593]
[1743414824402,1.65640131,587.49,586.02,0.27713593]
[1743414824403,3.17065985,587.07,586.02,0.27713593]
[1743414824607,3.17065985,587.07,586.04,0.34127363]
[1743414824806,3.17065985,587.07,586.05,0.27713593]
[1743414825006,0.99384078,587.5,585.87,0.29665117]
[1743414825007,1.22441255,587.06,586.07,0.34125616]
[1743414825206,1.22441255,587.06,586.08,0.27713593]
[1743414825402,1.22441255,587.06,586.1,0.34123869]
[1743414825606,0.29659681,587.22,586.1,0.34123869]
[1743414825607,0.29659681,587.22,586.11,0.27713593]
[1743414825807,1.65971387,587.34,586.13,0.34122123]
[1743414826007,3.14734204,587.21,586.14,0.27713593]
[1743414826208,6.16316251,587.2,586.15,0.34120958]
[1743414826502,1.44249398,587.19,586.16,0.27713593]
[1743414826702,1.44249398,587.18,586.17,0.34119794]
[1743414826902,1.44249398,587.17,586.18,0.27713593]
[1743414827106,1.44249398,587.16,586.19,0.3411863]
[1743414827303,1.44249398,587.15,586.2,0.27713593]
[1743414827506,3.14734204,587.17,586.2,0.27713593]
[1743414827507,1.44249398,587.14,586.21,0.34117466]
[1743414827810,3.14734204,587.17,586.22,0.27713593]
[1743414828109,3.14734204,587.14,586.23,0.34116302]
[1743414828304,3.14734204,587.14,586.24,0.27713593]
[1743414828509,0.29657785,587.18,586.25,0.34115138]
[1743414828704,0.29657785,587.18,586.26,0.27713593]
[1743414829210,6.06456448,587.49,586.26,0.27713593]
[1743414829408,4.63820718,587.48,586.26,0.27713593]
[1743414829611,0.29648562,587.34,586.27,0.34113974]
[1743414829804,0.68105664,587.49,586.27,0.34113974]
[1743414829805,0.89147331,587.46,586.28,0.27713593]
[1743414830006,1.20958932,587.33,586.28,0.27713593]
[1743414830208,0.29648815,587.34,586.29,0.27713593]
[1743414830404,0.29648815,587.34,586.3,0.27713593]
[1743414830608,1.44183849,587.56,586.32,0.34111065]
[1743414830803,0.29645405,587.42,586.33,0.27713593]
[1743414831009,0.29645405,587.42,586.35,0.3410932]
[1743414831205,0.68083939,587.56,586.36,0.27713593]
[1743414831408,0.29645026,587.42,586.37,0.61821749]
[1743414831610,0.29645026,587.42,586.38,0.61821168]
[1743414831810,3.82937281,587.55,586.39,0.27713593]
[1743414832011,1.44305937,587.54,586.4,0.27713593]
[1743414832213,0.29644269,587.42,586.41,0.61819423]
[1743414832407,3.14853342,587.53,586.42,0.27713593]
[1743414833010,3.14853342,587.53,586.43,0.27685426]
[1743414833209,0.29638841,587.63,586.42,0.27685426]
[1743414833408,0.29638841,587.63,586.43,0.27685426]
[1743414833713,1.44431247,587.62,586.44,0.27685426]
[1743414834014,0.29638841,587.63,586.45,0.27685426]
[1743414834206,0.29638841,587.63,586.41,0.3410583]
[1743414834207,4.59574974,587.62,586.42,0.27685426]
[1743414834412,1.44444689,587.61,586.43,0.27685426]
[1743414834709,3.76777543,587.6,586.42,0.27685426]
[1743414834912,6.07909248,587.59,586.43,0.27685426]
[1743414835108,6.07909248,587.58,586.42,0.27685426]
[1743414835311,6.07909248,587.57,586.42,0.27685426]
[1743414835511,6.07909248,587.56,586.43,0.27692196]
[1743414835710,6.07909248,587.55,586.44,0.27692196]
[1743414835914,4.65037842,587.54,586.45,0.27692196]
[1743414836106,4.65037842,587.53,586.46,0.27692196]
[1743414836311,4.65037842,587.52,586.47,0.27692196]
[1743414836614,4.65059654,587.51,586.48,0.61793955]
[1743414836810,4.65059654,587.5,586.49,0.61793374]
[1743414837015,4.65059654,587.49,586.5,0.61792792]
[1743414837218,2.33872545,587.48,586.51,0.61792211]
[1743414837417,2.3402595,587.47,586.52,0.61791629]
[1743414837719,1.44491943,587.46,586.53,0.61791048]
[1743414838016,5.27700463,587.45,586.54,0.61790467]
[1743414838212,1.44491943,587.44,586.54,0.34098271]
[1743414838417,1.44491943,587.43,586.55,0.27692184]
[1743414838615,3.8320852,587.45,586.56,0.27692184]
[1743414838812,3.8320852,587.45,586.54,0.34098271]
[1743414838813,3.15130285,587.42,586.57,0.27692184]
[1743414839012,3.15130285,587.42,586.58,0.27692184]
[1743414839312,3.15130285,587.41,586.54,0.34098271]
[1743414839913,3.15130285,587.41,586.55,0.27692533]
[1743414840112,3.15130285,587.4,586.55,0.27692533]
[1743414840317,3.15130285,587.4,586.56,0.27692533]
[1743414840515,3.15130285,587.4,586.55,0.27692533]
[1743414840715,3.15130285,587.4,586.56,0.27692533]
[1743414840916,3.15130285,587.39,586.57,0.27692533]
[1743414841218,1.44827345,587.38,586.55,0.27692533]
[1743414841418,1.44827345,587.38,586.54,0.34098271]
[1743414841419,3.15130285,587.37,586.56,0.27695129]
[1743414841613,3.15130285,587.37,586.57,0.27695129]
[1743414841819,3.15130285,587.36,586.58,0.27695129]
[1743414842014,3.15130285,587.36,586.59,0.27695129]
[1743414842219,3.15130285,587.36,586.6,0.27695129]
[1743414842417,3.15130285,587.36,586.55,0.27695129]
[1743414842723,3.15130285,587.35,586.56,0.27695129]
[1743414842922,3.15130285,587.35,586.54,0.34098271]
[1743414843125,3.15130285,587.34,586.55,0.27696653]
[1743414843317,3.15130285,587.34,586.56,0.34097108]
[1743414843529,3.15130285,587.34,586.57,0.27696653]
[1743414843717,3.15130285,587.34,586.58,0.34095945]
[1743414843924,0.29639976,587.61,586.59,0.27696653]
[1743414844318,1.21756279,587.6,586.59,0.27696653]
[1743414844924,1.21756279,587.6,586.6,0.2768514]
[1743414845225,1.21756279,587.59,586.61,0.2768514]
[1743414845423,1.21756279,587.59,586.59,0.2768514]
[1743414845619,1.21756279,587.59,586.58,0.34095945]
[1743414845620,1.21756279,587.59,586.6,0.2768514]
[1743414845827,0.2963619,587.62,586.61,0.34094202]
[1743414846027,1.45167436,587.61,586.62,0.2768514]
[1743414846226,1.45167436,587.6,586.63,0.2768514]
[1743414846420,1.45167436,587.59,586.62,0.2768514]
[1743414846728,1.45167436,587.58,586.63,0.2768514]
[1743414846927,1.45167436,587.57,586.64,0.2768514]
[1743414847127,1.45167436,587.56,586.62,0.2768514]
[1743414847427,3.16753747,587.57,586.63,0.2768514]
[1743414847827,0.29639472,587.55,586.64,0.2768514]
[1743414848026,0.29639472,587.55,586.65,0.61777017]
[1743414848227,1.21828497,587.54,586.66,0.61776436]
[1743414848428,1.21828497,587.54,586.67,0.61775855]
[1743414848624,1.21828497,587.54,586.68,0.61775274]
[1743414848826,0.29639472,587.55,586.69,0.61774693]
[1743414849027,0.29639472,587.55,586.7,0.2768514]
[1743414849425,0.29639472,587.55,586.71,0.2768514]
[1743414849628,0.29639472,587.55,586.72,0.2768514]
[1743414849832,0.29639472,587.55,586.73,0.2768514]
[1743414850029,0.29639472,587.55,586.74,0.2768514]
[1743414850230,0.29639472,587.55,586.7,0.2768514]
[1743414850530,0.68064538,587.72,586.71,0.2768514]
[1743414850730,6.11502908,587.71,586.72,0.2768514]
[1743414851029,9.96584859,587.7,586.73,0.2768514]
[1743414851232,6.11502908,587.69,586.71,0.2768514]
[1743414851428,6.11502908,587.68,586.72,0.27686783]
[1743414851630,6.11502908,587.67,586.71,0.27686783]
[1743414851830,0.99426164,587.9,586.71,0.27686783]
[1743414851831,9.96584859,587.66,586.71,0.27686783]
[1743414852127,0.29634171,587.68,586.71,0.27686783]
[1743414852128,8.52770407,587.65,586.71,0.27686783]
[1743414852331,4.67688456,587.64,586.71,0.27686783]
[1743414852527,4.67688456,587.63,586.71,0.27686783]
[1743414852727,2.35193426,587.62,586.71,0.27686783]
[1743414852931,2.35193426,587.61,586.71,0.27686783]
[1743414853236,1.45309393,587.6,586.71,0.61775174]
[1743414853429,1.45309393,587.59,586.72,0.27686783]
[1743414853634,2.3528931,587.58,586.72,0.27686783]
[1743414853835,2.3528931,587.57,586.72,0.27686783]
[1743414854132,2.3528931,587.56,586.72,0.27686783]
[1743414854334,2.3528931,587.55,586.72,0.27686783]
[1743414854532,2.3528931,587.54,586.72,0.27686783]
[1743414854834,0.29637957,587.55,586.72,0.27686783]
[1743414855033,3.17017413,587.53,586.72,0.27686783]
[1743414855234,1.45521703,587.52,586.72,0.27686783]
[1743414855530,1.45521703,587.51,586.72,0.27686783]
[1743414855734,3.17017413,587.51,586.72,0.27686783]
[1743414856330,1.21929774,587.5,586.72,0.27686783]
[1743414856731,1.51568488,587.5,586.72,0.27686783]
[1743414856929,1.51568488,587.5,586.71,0.34088391]
[1743414857134,2.67659537,587.49,586.72,0.27689783]
[1743414857331,1.21929774,587.49,586.72,0.27689783]
[1743414857734,1.21929774,587.48,586.72,0.27689783]
[1743414858330,1.21929774,587.47,586.72,0.27689783]
[1743414859136,0.29636443,587.6,586.73,0.34087229]
[1743414859436,1.65971387,587.81,586.74,0.27689783]
[1743414859636,0.29630891,587.68,586.75,0.34086067]
[1743414859935,1.45906602,587.67,586.76,0.27689783]
[1743414860137,3.86378303,587.8,586.77,0.61774688]
[1743414860338,6.14123258,587.79,586.78,0.34084324]
[1743414860539,6.14123258,587.78,586.78,0.61774107]
[1743414860735,6.14123258,587.77,586.79,0.27689783]
[1743414860935,4.69694963,587.76,586.8,0.27689783]
[1743414861130,4.69694963,587.75,586.8,0.27689783]
[1743414861333,4.69694963,587.74,586.81,0.27689783]
[1743414861637,4.69694963,587.73,586.82,0.27689783]
[1743414861833,4.69694963,587.73,586.79,0.34083743]
[1743414861834,2.36201253,587.72,586.8,0.27689783]
[1743414862034,2.36201253,587.71,586.81,0.27689783]
[1743414862234,2.36201253,587.7,586.81,0.27689783]
[1743414862531,1.45933569,587.69,586.82,0.27680515]
[1743414862730,1.45933569,587.68,586.82,0.34082001]
[1743414862931,3.18323757,587.7,586.83,0.27680515]
[1743414863137,1.22432214,587.67,586.84,0.61761354]
[1743414863337,1.22432214,587.67,586.85,0.61760774]
[1743414863532,1.22432214,587.67,586.86,0.34079678]
[1743414863732,1.22432214,587.67,586.87,0.27680515]
[1743414863932,0.2962963,587.79,586.88,0.34078516]
[1743414864133,0.2962963,587.79,586.89,0.27680515]
[1743414864633,0.2962963,587.79,586.9,0.34077355]
[1743414864844,3.78137823,588.01,586.91,0.27680515]
[1743414865043,1.22526897,587.78,586.91,0.27680515]
[1743414865246,1.22526897,587.78,586.92,0.34076194]
[1743414865445,1.22526897,587.78,586.93,0.27680515]
[1743414865848,4.69806772,588.07,586.94,0.61744116]
[1743414866041,4.69806772,588.06,586.95,0.61743535]
[1743414866245,2.36255102,588.05,586.96,0.27669083]
[1743414866445,2.36255102,588.04,586.96,0.27669083]
[1743414866640,2.3614546,588.03,586.97,0.34073291]
[1743414866847,4.16113307,588.06,586.97,0.34073291]
[1743414866848,2.3614546,588.02,586.98,0.27669083]
[1743414867047,2.3614546,588.01,586.99,0.3407213]
[1743414867248,2.3614546,588.0,587.0,0.27669083]
[1743414867449,1.45902196,587.99,587.0,0.27669083]
[1743414867745,1.45902196,587.98,587.0,0.27669083]
[1743414868048,1.45902196,587.97,587.0,0.27669083]
[1743414868248,1.45838357,587.96,587.0,0.27669083]
[1743414868443,3.18466509,587.97,587.0,0.27669083]
[1743414868744,4.64248357,587.96,587.0,0.61740633]
[1743414868949,3.18466509,587.96,587.01,0.27669083]
[1743414869351,4.93848661,587.95,587.01,0.27669083]
[1743414869550,1.45759511,587.94,587.01,0.27669083]
[1743414869749,3.48085925,587.95,587.01,0.27669083]
[1743414869952,3.18466509,587.94,587.01,0.27669083]
[1743414870643,0.29619416,587.95,587.01,0.27669083]
[1743414870644,1.22487119,587.93,587.01,0.27669083]
[1743414871451,1.22487119,587.92,587.01,0.27669083]
[1743414872048,1.22487119,587.92,587.02,0.34070389]
[1743414872253,2.42205998,587.91,587.03,0.27669083]
[1743414872553,2.35717364,587.9,587.03,0.27669083]
[1743414872753,2.35717364,587.89,587.03,0.27669083]
[1743414872953,2.35717364,587.88,587.03,0.61738892]
[1743414873147,1.45617901,587.87,587.04,0.27669083]
[1743414873350,1.45617901,587.86,587.04,0.27669083]
[1743414873551,1.45617901,587.85,587.04,0.27669083]
[1743414873750,1.45617901,587.84,587.05,0.27669083]
[1743414873955,1.45617901,587.83,587.06,0.27669083]
[1743414874155,2.35635844,587.82,587.07,0.27669083]
[1743414874350,2.35635844,587.81,587.08,0.27669083]
[1743414874553,1.45617901,587.8,587.03,0.34069809]
[1743414874749,1.45617901,587.79,587.04,0.27672219]
[1743414874948,1.45617901,587.78,587.05,0.27672219]
[1743414875149,1.45617901,587.77,587.06,0.27672219]
[1743414875354,3.17569159,587.77,587.07,0.27672219]
[1743414875550,3.17569159,587.77,587.08,0.27672219]
[1743414875761,3.17569159,587.77,587.09,0.27672219]
[1743414876059,3.17569159,587.76,587.1,0.27672219]
[1743414876254,3.17569159,587.76,587.03,0.34069809]
[1743414876453,1.22141984,587.75,587.04,0.27670342]
[1743414876654,1.22141984,587.75,587.05,0.27670342]
[1743414876849,1.22141984,587.75,587.06,0.27670342]
[1743414877060,1.9589775,587.92,587.03,0.34069809]
[1743414877061,1.22141984,587.74,587.07,0.27670342]
[1743414877260,1.22141984,587.74,587.08,0.27670342]
[1743414877558,1.22141984,587.74,587.09,0.27670342]
[1743414877750,1.22141984,587.74,587.1,0.27670342]
[1743414877950,1.22141984,587.73,587.03,0.34069809]
[1743414878154,1.22141984,587.73,587.04,0.27671609]
[1743414878356,0.29620929,587.92,587.03,0.34069809]
[1743414878357,4.62838153,587.72,587.05,0.27671609]
[1743414878655,3.17403835,587.72,587.06,0.27671609]
[1743414878856,3.17403835,587.72,587.04,0.27671609]
[1743414879056,1.66276821,587.87,587.05,0.27671609]
[1743414879057,3.17403835,587.71,587.05,0.27671609]
[1743414879256,3.17403835,587.71,587.06,0.27671609]
[1743414879456,3.17403835,587.71,587.07,0.27671609]
[1743414879654,3.17403835,587.71,587.03,0.34069809]
[1743414879655,3.17403835,587.71,587.08,0.27671609]
[1743414879851,1.22141984,587.7,587.03,0.34069809]
[1743414880051,1.22141984,587.7,587.04,0.27670121]
[1743414880254,1.22141984,587.7,587.05,0.61738769]
[1743414880451,1.22141984,587.7,587.06,0.27670121]
[1743414880651,1.66276821,587.95,587.07,0.61737608]
[1743414880853,1.66276821,587.95,587.08,0.27670121]
[1743414881055,1.66276821,587.95,587.09,0.27670121]
[1743414881254,3.85530689,587.94,587.08,0.27670121]
[1743414881453,3.85530689,587.94,587.09,0.27670121]
[1743414881658,3.85530689,587.94,587.1,0.27670121]
[1743414881860,1.22117721,587.93,587.11,0.27670121]
[1743414882159,1.22117721,587.93,587.12,0.27670121]
[1743414882361,1.22117721,587.93,587.08,0.27670121]
[1743414882561,1.22117721,587.92,587.09,0.27670121]
[1743414882760,1.22117721,587.92,587.1,0.27670121]
[1743414882962,1.22117721,587.92,587.11,0.27670121]
[1743414883163,1.22117721,587.91,587.12,0.27670121]
[1743414883362,1.22117721,587.91,587.13,0.27670121]
[1743414883570,1.22117721,587.91,587.08,0.27670121]
[1743414883764,1.22117721,587.91,587.09,0.27670121]
[1743414883964,1.22117721,587.9,587.1,0.27670121]
[1743414884166,1.22117721,587.9,587.11,0.27670121]
[1743414884364,1.22117721,587.9,587.08,0.27670121]
[1743414884564,1.22117721,587.89,587.09,0.27670121]
[1743414884766,1.22117721,587.89,587.1,0.27670121]
[1743414884961,1.22117721,587.89,587.08,0.27670121]
[1743414885262,1.22117721,587.88,587.09,0.27670121]
[1743414885466,1.22117721,587.88,587.1,0.27670121]
[1743414885765,1.22117721,587.87,587.11,0.27670121]
[1743414885965,1.22117721,587.87,587.07,0.34067487]
[1743414885966,1.22117721,587.87,587.08,0.27670121]
[1743414886159,1.22117721,587.87,587.09,0.27670121]
[1743414886364,1.22117721,587.86,587.1,0.27670121]
[1743414886559,1.22117721,587.86,587.08,0.27670121]
[1743414886765,1.22117721,587.86,587.07,0.34067487]
[1743414886962,4.67356837,588.12,587.08,0.27668843]
[1743414887166,6.13035154,588.11,587.08,0.27668843]
[1743414887463,6.64054533,588.1,587.08,0.27668843]
[1743414887659,1.66276821,588.07,587.08,0.27668843]
[1743414887861,6.13035154,588.06,587.09,0.34066327]
[1743414888061,1.66276821,588.07,587.09,0.34066327]
[1743414888062,4.68868677,588.05,587.1,0.27668843]
[1743414888260,2.35783169,588.04,587.11,0.34065166]
[1743414888461,2.35783169,588.03,587.12,0.27668843]
[1743414888660,3.17849281,588.05,587.11,0.34065166]
[1743414888968,3.17849281,588.02,587.12,0.27664767]
[1743414889267,2.35887964,588.01,587.12,0.27664767]
[1743414889468,2.35887964,588.0,587.12,0.27664767]
[1743414889662,2.35887964,587.99,587.12,0.27664767]
[1743414889868,2.35913385,587.98,587.12,0.27664767]
[1743414890062,0.29614627,588.0,587.12,0.27664767]
[1743414890063,2.35913385,587.97,587.12,0.27664767]
[1743414890261,2.35913385,587.96,587.12,0.27664767]
[1743414890466,2.35913385,587.95,587.12,0.27664767]
[1743414890667,1.45743141,587.94,587.12,0.27664767]
[1743414890870,1.45743141,587.93,587.12,0.27664767]
[1743414891168,1.45791588,587.92,587.12,0.27664767]
[1743414891465,3.17849281,587.92,587.12,0.27664767]
[1743414892064,4.63657281,587.91,587.12,0.27664767]
[1743414892266,3.17849281,587.91,587.12,0.27664767]
[1743414892670,1.22249723,587.9,587.12,0.27664767]
[1743414893572,1.22249723,587.89,587.12,0.27664767]
[1743414893969,1.22249723,587.88,587.11,0.34065166]
[1743414894166,1.22249723,587.88,587.12,0.27666723]
[1743414894369,1.22249723,587.87,587.12,0.27666723]
[1743414894967,1.22249723,587.86,587.12,0.27666723]
[1743414895368,0.29614627,588.0,587.12,0.27666723]
[1743414895669,1.45877988,587.99,587.11,0.34065166]
[1743414895873,4.28789088,588.23,587.12,0.27668472]
[1743414896074,1.22396069,587.98,587.12,0.27668472]
[1743414896869,0.29616013,587.97,587.12,0.27668472]
[1743414897076,1.52012082,587.97,587.12,0.27668472]
[1743414897672,1.22396069,587.96,587.12,0.27668472]
[1743414898268,1.22396069,587.95,587.12,0.27668472]
[1743414899178,1.22396069,587.94,587.12,0.27668472]
[1743414899572,1.66276821,588.24,587.12,0.27668472]
[1743414899573,1.22396069,587.93,587.12,0.27668472]
[1743414899772,1.52015233,587.93,587.12,0.27668472]
[1743414899973,1.45921256,587.92,587.12,0.27668472]
[1743414900175,1.22396069,587.92,587.12,0.27668472]
[1743414900372,1.45911148,587.91,587.12,0.27668472]
[1743414900573,1.22396069,587.92,587.12,0.27668472]
[1743414900973,1.22396069,587.91,587.12,0.27668472]
[1743414902072,1.22396069,587.9,587.12,0.27668472]
[1743414902472,0.90295827,587.89,587.12,0.27668472]
[1743414902674,3.18393252,587.89,587.12,0.27668472]
[1743414902970,4.6438232,587.88,587.12,0.27668472]
[1743414903170,3.18393252,587.88,587.13,0.27668472]
[1743414903369,1.22396069,587.87,587.14,0.27668472]
[1743414903573,1.22396069,587.87,587.15,0.27668472]
[1743414903771,1.22396069,587.87,587.16,0.27668472]
[1743414903972,1.22396069,587.86,587.11,0.34065166]
[1743414904176,1.22396069,587.86,587.12,0.27667373]
[1743414904481,0.29619164,587.93,587.13,0.27667373]
[1743414904978,0.29619164,587.93,587.11,0.34065166]
[1743414904979,1.22607978,587.92,587.14,0.27667373]
[1743414905177,1.22607978,587.92,587.15,0.27667033]
[1743414905374,1.22607978,587.91,587.16,0.27667033]
[1743414905579,1.22607978,587.91,587.17,0.27667033]
[1743414905779,1.22607978,587.91,587.18,0.27667033]
[1743414905982,1.22607978,587.9,587.19,0.27667026]
[1743414906183,1.22607978,587.9,587.2,0.27667026]
[1743414906381,1.22607978,587.9,587.12,0.27667026]
[1743414906581,1.22607978,587.89,587.13,0.27667026]
[1743414906782,1.22607978,587.89,587.14,0.27667026]
[1743414906977,1.22607978,587.88,587.15,0.27667026]
[1743414907183,1.22607978,587.88,587.16,0.27667026]
[1743414907382,1.22607978,587.88,587.17,0.27667026]
[1743414907584,1.22607978,587.87,587.18,0.27667026]
[1743414907881,1.22607978,587.87,587.19,0.27667026]
[1743414908078,1.22607978,587.86,587.11,0.34065166]
[1743414908281,1.22607978,587.86,587.12,0.27667182]
[1743414908578,1.22607978,587.86,587.13,0.27667182]
[1743414908786,0.29619164,587.93,587.14,0.27667182]
[1743414908979,1.46480088,587.92,587.12,0.27667182]
[1743414909179,1.22912846,587.92,587.13,0.27667182]
[1743414909380,1.46504418,587.91,587.12,0.27667182]
[1743414909583,1.22912846,587.92,587.13,0.27667182]
[1743414909783,3.60031911,587.91,587.12,0.27667182]
[1743414909979,1.46503623,587.9,587.12,0.27667182]
[1743414910287,1.46503623,587.89,587.12,0.27667182]
[1743414910488,1.46503623,587.88,587.12,0.27667182]
[1743414910681,1.22912846,587.89,587.12,0.27667182]
[1743414910982,1.46539475,587.88,587.12,0.27667182]
[1743414911186,1.22912846,587.88,587.12,0.27667182]
[1743414911982,1.22912846,587.87,587.12,0.27667182]
[1743414912584,1.22912846,587.87,587.12,0.61731768]
[1743414912785,1.22912846,587.86,587.13,0.27667182]
[1743414912982,1.22912846,587.85,587.13,0.27667182]
[1743414913984,1.22912846,587.84,587.13,0.27667182]
[1743414914691,1.22912846,587.83,587.13,0.27667182]
[1743414914890,1.22912846,587.83,587.12,0.34064586]
[1743414915091,1.22912846,587.83,587.13,0.27667232]
[1743414915387,1.22912846,587.82,587.13,0.27667232]
[1743414916092,1.22912846,587.81,587.13,0.27667232]
[1743414916290,6.18577152,587.8,587.12,0.34064586]
[1743414916491,4.73097783,587.79,587.12,0.34064586]
[1743414916792,4.73097783,587.78,587.12,0.34064586]
[1743414916991,4.73097783,587.77,587.12,0.34064586]
[1743414917290,2.37910375,587.76,587.13,0.27678194]
[1743414917491,2.37910375,587.75,587.13,0.27678194]
[1743414917790,1.4699213,587.74,587.13,0.27678194]
[1743414917987,1.96620386,588.1,587.13,0.27678194]
[1743414918187,6.70130514,588.09,587.13,0.27678194]
[1743414918389,10.5937393,588.08,587.13,0.27678194]
[1743414918685,6.70130514,588.07,587.13,0.27678194]
[1743414918890,6.70130514,588.06,587.13,0.27678194]
[1743414919191,6.70121835,588.05,587.14,0.27678194]
[1743414919391,6.19102335,588.04,587.15,0.27678194]
[1743414919594,6.19102335,588.03,587.16,0.27678194]
[1743414919789,6.19102335,588.02,587.17,0.27678194]
[1743414919991,6.19102335,588.01,587.18,0.27678194]
[1743414920290,6.19102335,588.0,587.19,0.27668087]
[1743414920490,6.19102335,587.99,587.13,0.27668087]
[1743414920685,4.73510128,587.98,587.14,0.27668087]
[1743414920891,4.73580389,587.97,587.15,0.27668087]
[1743414921191,2.38188556,587.96,587.16,0.27668087]
[1743414921386,2.38188556,587.95,587.17,0.27668087]
[1743414921584,1.47119962,587.94,587.13,0.27668087]
[1743414921790,1.47119962,587.93,587.12,0.34064586]
[1743414921987,1.47119962,587.92,587.13,0.27667067]
[1743414922192,1.47119962,587.91,587.13,0.27667067]
[1743414922393,1.47119962,587.9,587.13,0.27667067]
[1743414922590,1.47119962,587.89,587.13,0.27667067]
[1743414922790,1.23541316,587.89,587.13,0.27667067]
[1743414923395,1.47409608,587.88,587.13,0.27667067]
[1743414923694,1.23541316,587.88,587.13,0.27667067]
[1743414924493,1.23541316,587.87,587.13,0.27667067]
[1743414924788,0.29616265,587.99,587.13,0.27667067]
[1743414924993,3.84499473,587.98,587.13,0.27667067]